Workbook

Sheet Contents
C3: Sheet Tab | D3: Description | E3: Author
B4: 1 | C4: Contents
B5: 2 | C5: Summary
B6: 3 | C6: Master Scenario
B7: 4 | C7: Financial Model
B8: 5 | C8: Valuation and Analysis
B9: 6 | C9: Audit
B10: 7 | C10: Financial Data Chart
B11: 8 | C11: Assumption Chart
B12: 9 | C12: Sheet2
B13: 10 | C13: 2015 EBITDA Forecast
B14: 11 | C14: Forecst of Sustaining Cap Exp
B15: 12 | C15: 2012 Volumes
B16: 13 | C16: 2012 Summary Income
B17: 14 | C17: 2013 Assumptions
B18: 15 | C18: Gross Plant
B20: File Name: | D20: =File_name() -> C:\Users\Monika Lewenski\Courses\Chapter 1. Models and Analysis\A. Corporate Models Templates and Exercises\A. Featured Corporate Finance Models\LaFarge Financial Model.xlsm
B22: Last Save Date | D22: =lastsaved1() -> 18/03/2017 07:19:33
B23: Last Save By | D23: =lastsaveby1() -> Elvis Presley
B25: Colour Codes

Sheet Summary
D2: Scenario | H2: Assumption Item to Graph | N2: Explicit Period | R2: ='Valuation and Analysis'!$E$11 -> 6
N3: WACC | R3: =wacc -> 0.095
D4: Key Value Drivers | E4: Custom Case Senstivity
D5: Cement prices | R5: Growth | S5: EV/EBITDA | T5: ROIC
D6: Growth rate | N6: Valuation from Free Cash Flow | R6: =growth -> 0.02 | S6: =EV_EBITDA -> 6 | T6: =long_term_roic -> 0.105
D7: Utilisation Rate | N7: Value of Explicit Cash Flow | R7: ='Valuation and Analysis'!E38 -> 8328.080656 | S7: =R7 -> 8328.080656 | T7: =S7 -> 8328.080656
D8: Capex per tonne /new capacity | N8: Value of Terminal Cash Flow | R8: ='Valuation and Analysis'!E42 -> 16351.86377 | S8: ='Valuation and Analysis'!E69 -> 23594.55863 | T8: ='Valuation and Analysis'!E91 -> 23504.51998
D9: Sustaining Capital Expenditures | N9: Value of Enterprise | R9: =SUM(R7:R8) -> 24679.94443 | S9: =SUM(S7:S8) -> 31922.63928 | T9: =SUM(T7:T8) -> 31832.60063
D10: COGS/Tonne | N10: Bridge: Equity Value vs EV | R10: ='Valuation and Analysis'!E72 -> -12443 | S10: =R10 -> -12443 | T10: =S10 -> -12443
D11: SG&A | E11: ='Master Scenario'!G42 -> 0.11 | N11: Equity Value | R11: =R9+R10 -> 12236.94443 | S11: =S9+S10 -> 19479.63928 | T11: =T9+T10 -> 19389.60063
D12: Interest Rate | E12: ='Master Scenario'!N42 -> 0.08 | N12: Shares | R12: ='Valuation and Analysis'!E75 -> 286514 | S12: =R12 -> 286514 | T12: =S12 -> 286514
N13: Value Per Share | R13: ='Valuation and Analysis'!E63 -> 42.70976088 | S13: ='Valuation and Analysis'!E76 -> 67.98843786 | T13: ='Valuation and Analysis'!E97 -> 67.67418217
H16: Finanial Ratio to Graph
D22: Stable Ratios in Terminal Year
D23: Capital Expenditures/Dep
D24: Net Depreciation Rate
D25: Working Capital/EBITDA
D26: Dividend Payout

Sheet Master Scenario
B2: Explicit Period
B3: Perpetual Terminal Growth | E3: Explicit Period | F3: ='Valuation and Analysis'!$E$11 -> 6 | G3: WACC
B4: Scenario # | C4: 4
B5: Production Increase | C5: Utilisation | D5: Cement Price | E5: Aggregrate and Concrete Percent | F5: Cost of Production | G5: SG&A % | H5: Sustaining Cap Exp | I5: New Cap Exp | J5: Minimum Cash Balance | K5: AR / Sales | L5: Inv / COGS | M5: Effective Tax Rate | N5: Interest Rate | O5: Other Expenses | Q5: DCF Valuation | R5: DCF / EV EBITDA | S5: DCF / Value Drivers | T5: Equity Cash Flow Valuation
Q6: ='Valuation and Analysis'!E63 -> 42.70976088 | R6: ='Valuation and Analysis'!E76 -> 67.98843786 | S6: =Summary!$T$13 -> 67.67418217
A7: Company Case | B7: 1 | C7: 1 | D7: 1 | E7: 0.52 | F7: 1 | G7: 0.1 | H7: 1 | I7: 1 | J7: 0.02 | K7: 0.17 | L7: 0.15 | M7: 0.25 | N7: 0.07 | O7: 150 | P7: 1
A8: Base Case | B8: 1 | C8: 1 | D8: 1 | E8: 0.52 | F8: 1 | G8: 0.1 | H8: 1 | I8: 1 | J8: 0.02 | K8: 0.17 | L8: 0.15 | M8: 0.25 | N8: 0.07 | O8: 150 | P8: 2
A9: High Case | B9: 2 | C9: 2 | D9: 2 | E9: 0.55 | F9: 2 | G9: 0.085 | H9: 2 | I9: 2 | J9: 0.01 | K9: 0.16 | L9: 0.14 | M9: 0.2 | N9: 0.06 | O9: 100 | P9: 3
A10: Low Case | B10: 3 | C10: 3 | D10: 3 | E10: 0.45 | F10: 3 | G10: 0.11 | H10: 3 | I10: 3 | J10: 0.1 | K10: 0.2 | L10: 0.16 | M10: 0.3 | N10: 0.08 | O10: 170 | P10: 4
A11: ="Low Case "&TRANSPOSE(B5:O5) -> Low Case Production Increase | B11: =B10 -> 3 | C11: =C$7 -> 1 | D11: 1 | E11: 0.52 | F11: 1 | G11: 0.1 | H11: 1 | I11: 1 | J11: 0.02 | K11: 0.17 | L11: 0.15 | M11: 0.25 | N11: 0.07 | O11: 150 | P11: 5
A12: Low Case Utilisation | B12: =B$7 -> 1 | C12: =C10 -> 3 | D12: 1 | E12: 0.52 | F12: 1 | G12: 0.1 | H12: 1 | I12: 1 | J12: 0.02 | K12: 0.17 | L12: 0.15 | M12: 0.25 | N12: 0.07 | O12: 150 | P12: 6
A13: Low Case Cement Price | B13: 1 | C13: 1 | D13: =D10 -> 3 | E13: 0.52 | F13: 1 | G13: 0.1 | H13: 1 | I13: 1 | J13: 0.02 | K13: 0.17 | L13: 0.15 | M13: 0.25 | N13: 0.07 | O13: 150 | P13: 7
A14: Low Case Aggregrate and Concrete Percent | B14: 1 | C14: 1 | D14: 1 | E14: =E10 -> 0.45 | F14: 1 | G14: 0.1 | H14: 1 | I14: 1 | J14: 0.02 | K14: 0.17 | L14: 0.15 | M14: 0.25 | N14: 0.07 | O14: 150 | P14: 8
A15: Low Case Cost of Production | B15: 1 | C15: 1 | D15: 1 | E15: 0.52 | F15: =F10 -> 3 | G15: 0.1 | H15: 1 | I15: 1 | J15: 0.02 | K15: 0.17 | L15: 0.15 | M15: 0.25 | N15: 0.07 | O15: 150 | P15: 9
A16: Low Case SG&A % | B16: 1 | C16: 1 | D16: 1 | E16: 0.52 | F16: 1 | G16: =G10 -> 0.11 | H16: 1 | I16: 1 | J16: 0.02 | K16: 0.17 | L16: 0.15 | M16: 0.25 | N16: 0.07 | O16: 150 | P16: 10
A17: Low Case Sustaining Cap Exp | B17: 1 | C17: 1 | D17: 1 | E17: 0.52 | F17: 1 | G17: 0.1 | H17: =H10 -> 3 | I17: 1 | J17: 0.02 | K17: 0.17 | L17: 0.15 | M17: 0.25 | N17: 0.07 | O17: 150 | P17: 11
A18: Low Case New Cap Exp | B18: 1 | C18: 1 | D18: 1 | E18: 0.52 | F18: 1 | G18: 0.1 | H18: 1 | I18: =I10 -> 3 | J18: 0.02 | K18: 0.17 | L18: 0.15 | M18: 0.25 | N18: 0.07 | O18: 150 | P18: 12
A19: Low Case Minimum Cash Balance | B19: 1 | C19: 1 | D19: 1 | E19: 0.52 | F19: 1 | G19: 0.1 | H19: 1 | I19: 1 | J19: =J10 -> 0.1 | K19: 0.17 | L19: 0.15 | M19: 0.25 | N19: 0.07 | O19: 150 | P19: 13
A20: Low Case AR / Sales | B20: 1 | C20: 1 | D20: 1 | E20: 0.52 | F20: 1 | G20: 0.1 | H20: 1 | I20: 1 | J20: 0.02 | K20: =K10 -> 0.2 | L20: 0.15 | M20: 0.25 | N20: 0.07 | O20: 150 | P20: 14
A21: Low Case Inv / COGS | B21: 1 | C21: 1 | D21: 1 | E21: 0.52 | F21: 1 | G21: 0.1 | H21: 1 | I21: 1 | J21: 0.02 | K21: 0.17 | L21: =L10 -> 0.16 | M21: 0.25 | N21: 0.07 | O21: 150 | P21: 15
A22: Low Case Effective Tax Rate | B22: 1 | C22: 1 | D22: 1 | E22: 0.52 | F22: 1 | G22: 0.1 | H22: 1 | I22: 1 | J22: 0.02 | K22: 0.17 | L22: 0.15 | M22: 0.25 | N22: 0.07 | O22: 150 | P22: 16
A23: Low Case Interest Rate | B23: 1 | C23: 1 | D23: 1 | E23: 0.52 | F23: 1 | G23: 0.1 | H23: 1 | I23: 1 | J23: 0.02 | K23: 0.17 | L23: 0.15 | M23: 0.25 | N23: 0.07 | O23: 150 | P23: 17
A24: Low Case Other Expenses | B24: 1 | C24: 1 | D24: 1 | E24: 0.52 | F24: 1 | G24: 0.1 | H24: 1 | I24: 1 | J24: 0.02 | K24: 0.17 | L24: 0.15 | M24: 0.25 | N24: 0.07 | O24: 150 | P24: 18
A25: ="High Case "&TRANSPOSE(B5:O5) -> High Case Production Increase | B25: 1 | C25: 1 | D25: 1 | E25: 0.52 | F25: 1 | G25: 0.1 | H25: 1 | I25: 1 | J25: 0.02 | K25: 0.17 | L25: 0.15 | M25: 0.25 | N25: 0.07 | O25: 150 | P25: 19
A26: High Case Utilisation | B26: 1 | C26: 1 | D26: 1 | E26: 0.52 | F26: 1 | G26: 0.1 | H26: 1 | I26: 1 | J26: 0.02 | K26: 0.17 | L26: 0.15 | M26: 0.25 | N26: 0.07 | O26: 150 | P26: 20
A27: High Case Cement Price | B27: 1 | C27: =C$7 -> 1 | D27: 1 | E27: 0.52 | F27: 1 | G27: 0.1 | H27: 1 | I27: 1 | J27: 0.02 | K27: 0.17 | L27: 0.15 | M27: 0.25 | N27: 0.07 | O27: 150 | P27: 21
A28: High Case Aggregrate and Concrete Percent | B28: 1 | C28: 1 | D28: 1 | E28: 0.52 | F28: 1 | G28: 0.1 | H28: 1 | I28: 1 | J28: 0.02 | K28: 0.17 | L28: 0.15 | M28: 0.25 | N28: 0.07 | O28: 150 | P28: 22
A29: High Case Cost of Production | B29: 1 | C29: 1 | D29: 1 | E29: 0.52 | F29: 1 | G29: 0.1 | H29: 1 | I29: 1 | J29: 0.02 | K29: 0.17 | L29: 0.15 | M29: 0.25 | N29: 0.07 | O29: 150 | P29: 23
A30: High Case SG&A % | B30: 1 | C30: 1 | D30: 1 | E30: 0.52 | F30: 1 | G30: 0.1 | H30: 1 | I30: 1 | J30: 0.02 | K30: 0.17 | L30: 0.15 | M30: 0.25 | N30: 0.07 | O30: 150 | P30: 24
A31: High Case Sustaining Cap Exp | B31: 1 | C31: 1 | D31: 1 | E31: 0.52 | F31: 1 | G31: 0.1 | H31: 1 | I31: 1 | J31: 0.02 | K31: 0.17 | L31: 0.15 | M31: 0.25 | N31: 0.07 | O31: 150 | P31: 25
A32: High Case New Cap Exp | B32: 1 | C32: 1 | D32: 1 | E32: 0.52 | F32: 1 | G32: 0.1 | H32: 1 | I32: 1 | J32: 0.02 | K32: 0.17 | L32: 0.15 | M32: 0.25 | N32: 0.07 | O32: 150 | P32: 26
A33: High Case Minimum Cash Balance | B33: 1 | C33: 1 | D33: 1 | E33: 0.52 | F33: 1 | G33: 0.1 | H33: 1 | I33: 1 | J33: 0.02 | K33: 0.17 | L33: 0.15 | M33: 0.25 | N33: 0.07 | O33: 150 | P33: 27
A34: High Case AR / Sales | B34: 1 | C34: 1 | D34: 1 | E34: 0.52 | F34: 1 | G34: 0.1 | H34: 1 | I34: 1 | J34: 0.02 | K34: 0.17 | L34: 0.15 | M34: 0.25 | N34: 0.07 | O34: 150 | P34: 28
A35: High Case Inv / COGS | B35: 1 | C35: 1 | D35: 1 | E35: 0.52 | F35: 1 | G35: 0.1 | H35: 1 | I35: 1 | J35: 0.02 | K35: 0.17 | L35: 0.15 | M35: 0.25 | N35: 0.07 | O35: 150 | P35: 29
A36: High Case Effective Tax Rate | B36: 1 | C36: 1 | D36: 1 | E36: 0.52 | F36: 1 | G36: 0.1 | H36: 1 | I36: 1 | J36: 0.02 | K36: 0.17 | L36: 0.15 | M36: 0.25 | N36: 0.07 | O36: 150 | P36: 30
A37: High Case Interest Rate | B37: 1 | C37: 1 | D37: 1 | E37: 0.52 | F37: 1 | G37: 0.1 | H37: 1 | I37: 1 | J37: 0.02 | K37: 0.17 | L37: 0.15 | M37: 0.25 | N37: 0.07 | O37: 150 | P37: 31
A38: High Case Other Expenses | B38: 1 | C38: 1 | D38: 1 | E38: 0.52 | F38: 1 | G38: 0.1 | H38: 1 | I38: 1 | J38: 0.02 | K38: 0.17 | L38: 0.15 | M38: 0.25 | N38: 0.07 | O38: 150 | P38: 32
A39: Custom Case Sensitivity | B39: 2 | C39: 1 | D39: 1 | E39: 0.52 | F39: 1 | G39: 0.1 | H39: 3 | I39: 2 | J39: 0.02 | K39: 0.17 | L39: =L$7 -> 0.15 | M39: =M$7 -> 0.25 | N39: =N$7 -> 0.07 | O39: =O$7 -> 150 | P39: 33
A42: =INDEX(A7:A39,$C$4) -> Low Case | B42: 3 | C42: 3 | D42: 3 | E42: 0.45 | F42: 3 | G42: 0.11 | H42: 3 | I42: 3 | J42: 0.1 | K42: 0.2 | L42: 0.16 | M42: 0.3 | N42: 0.08 | O42: 170

Sheet Financial Model
H1: 45 | O1: =AD370 -> 1
E3: 2006 | F3: 2007 | G3: 2008 | H3: 2009 | I3: 2010 | J3: 2011 | K3: 2012 | L3: 2013 | M3: 2014 | N3: 2015 | O3: 2016 | P3: 2017 | Q3: 2018 | R3: 2019 | S3: 2020 | T3: 2021 | U3: 2022
C4: Historic switch | E4: =E3<=$E$8 -> TRUE | F4: TRUE | G4: TRUE | H4: TRUE | I4: TRUE | J4: TRUE | K4: FALSE | L4: FALSE | M4: FALSE | N4: FALSE | O4: FALSE | P4: FALSE | Q4: FALSE | R4: FALSE | S4: FALSE | T4: FALSE | U4: FALSE
C5: Explicit Forecast Period | E5: =AND(E3>$E$8,E3<=$E$9) -> FALSE | F5: FALSE | G5: FALSE | H5: FALSE | I5: FALSE | J5: FALSE | K5: TRUE | L5: TRUE | M5: TRUE | N5: TRUE | O5: TRUE | P5: TRUE | Q5: TRUE | R5: FALSE | S5: FALSE | T5: FALSE | U5: FALSE
C6: Terminal Period | E6: =E3=$E$9 -> FALSE | F6: FALSE | G6: FALSE | H6: FALSE | I6: FALSE | J6: FALSE | K6: FALSE | L6: FALSE | M6: FALSE | N6: FALSE | O6: FALSE | P6: FALSE | Q6: TRUE | R6: FALSE | S6: FALSE | T6: FALSE | U6: FALSE
C8: Last Historic Year | E8: 2011
C9: Terminal Period | E9: =E8+'Valuation and Analysis'!E11+1 -> 2018
A11: Historic Financials
B12: Prodction and Capacity
D13: Cement Volumes (MM Tonnes) | F13: 136.3 | G13: 154.6 | H13: 141.253 | I13: 135.65 | J13: 145.39 | K13: ='2012 Volumes'!O9 -> 141.1
D14: Cement Capacity | G14: 196.3 | H14: 201.3 | I14: 216.5 | J14: 221
B16: Income Statement
C17: Revenues
D18: Cement | E18: 8847 | F18: 9456 | G18: 10911 | H18: 9477 | I18: 9656 | J18: 9975
D19: Aggregates | E19: 6439 | F19: 6586 | G19: 6573 | H19: 5064 | I19: 5088 | J19: 5227
D20: Gypsum | E20: 1610 | F20: 1556 | G20: 1521 | H20: 1334 | I20: 90 | J20: 82
D21: Other | E21: 13 | F21: 16 | G21: 28 | H21: 9
D22: Total Revenue | E22: =SUM(E18:E21) -> 16909 | F22: 17614 | G22: 19033 | H22: 15884 | I22: 14834 | J22: 15284
D23: Cost of sales | E23: -12385 | F23: -12700 | G23: -13729 | H23: -11707 | I23: -10920 | J23: -11627
D24: Selling and administrative expenses | E24: -1752 | F24: -1672 | G24: -1762 | H24: -1700 | I24: -1521 | J24: -1478
D25: OPERATING INCOME BEFORE CAPITAL GAINS, IMPAIRMENT, RESTRUCTURING AND OTHER | E25: =SUM(E22:E24) -> 2772 | F25: 3242 | G25: 3542 | H25: 2477 | I25: 2393 | J25: 2179
D26: Net gains (losses) on disposals | E26: 28 | F26: 196 | G26: 229 | H26: 103 | I26: 45 | J26: 45
D27: Other operating income (expenses) | E27: -122 | F27: -149 | G27: -409 | H27: -330 | I27: -304 | J27: -541
D28: OPERATING INCOME | E28: =SUM(E25:E27) -> 2678 | F28: 3289 | G28: 3362 | H28: 2250 | I28: 2134 | J28: 1683
D29: Finance costs | E29: -582 | F29: -652 | G29: -1157 | H29: -1136 | I29: -1055 | J29: -1142
D30: Finance income | E30: 97 | F30: 126 | G30: 216 | H30: 210 | I30: 343 | J30: 143
D31: Share of net income (loss) of associates | E31: 30 | F31: 0 | G31: -3 | H31: -18 | I31: -23 | J31: -8
D32: INCOME BEFORE INCOME TAX | E32: =SUM(E28:E31) -> 2223 | F32: 2763 | G32: 2418 | H32: 1306 | I32: 1399 | J32: 676
D33: Income tax | E33: -630 | F33: -725 | G33: -479 | H33: -260 | I33: -305 | J33: -432
D34: NET INCOME FROM CONTINUING OPERATIONS | E34: 1593 | F34: 2038 | G34: 1939 | H34: 1046 | I34: 1094 | J34: 244
D35: Net income / (loss) from discontinued operations | E35: -4 | F35: 118 | G35: 0 | H35: 0 | I35: 20 | J35: 492
D36: NET INCOME | E36: 1589 | F36: 2156 | G36: 1939 | H36: 1046 | I36: 1114 | J36: 736
D37: Of which, attributable to:
D38: Owners of the parent company | E38: 1372 | F38: 1909 | G38: 1598 | H38: 736 | I38: 827 | J38: 593
D39: Non-controlling interests | E39: 217 | F39: 247 | G39: 341 | H39: 310 | I39: 287 | J39: 143
D40: EARNINGS PER SHARE (EUROS)
D41: NET INCOME - ATTRIBUTABLE TO THE OWNERS OF THE PARENT
D42: Basic earnings per share | E42: 7.86 | F42: 9.6 | G42: 7.19 | H42: 2.77 | I42: 2.89 | J42: 2.07
D43: Diluted earnings per share | E43: 7.75 | F43: 9.48 | G43: 7.16 | H43: 2.77 | I43: 2.89 | J43: 2.06
D44: BASIC AVERAGE NUMBER OF SHARES OUTSTANDING (IN THOUSANDS) | E44: 174543 | F44: 198806 | G44: 222350 | H44: 265547 | I44: 286087 | J44: 286514
D46: EBITDA | G46: 4618 | H46: 3600 | I46: 3488 | J46: 3217
D47: Operating income before capital gains, impairment, restructuring and other | G47: 3542 | H47: 2477 | I47: 2393 | J47: 2179
D48: Operating income | G48: 3362 | H48: 2250 | I48: 2134 | J48: 1683
B50: Balance Sheet
C51: ASSETS
D52: NON-CURRENT ASSETS | E52: 20474 | F52: 21490 | G52: 32928 | H52: 32857 | I52: 34752 | J52: 31172
D53: Goodwill | E53: 7511 | F53: 7471 | G53: 13374 | H53: 13249 | I53: 14327 | J53: 12701
D54: Intangible assets | E54: 426 | F54: 472 | G54: 614 | H54: 632 | I54: 661 | J54: 652
D55: Property, plant and equipment | E55: 11183 | F55: 11904 | G55: 16927 | H55: 16699 | I55: 17912 | J55: 15542
D56: Investments in associates | E56: 253 | F56: 331 | G56: 563 | H56: 335 | I56: 422 | J56: 604
D57: Other financial assets | E57: 830 | F57: 1096 | G57: 1147 | H57: 1591 | I57: 863 | J57: 755
D58: Derivative instruments | E58: 70 | F58: 5 | G58: 122 | H58: 43 | I58: 78 | J58: 80
D59: Deferred tax assets | E59: 201 | F59: 211 | G59: 181 | H59: 308 | I59: 489 | J59: 804
D60: Other receivables - | I60: 0 | J60: 34
D61: CURRENT ASSETS | E61: 9367 | F61: 6818 | G61: 7680 | H61: 6640 | I61: 7742 | J61: 9547
D62: Inventories | E62: 1619 | F62: 1761 | G62: 2195 | H62: 1702 | I62: 1647 | J62: 1531
D63: Trade receivables | E63: 2674 | F63: 2515 | G63: 2320 | H63: 1686 | I63: 1774 | J63: 1765
D64: Other receivables | E64: 1126 | F64: 1061 | G64: 1351 | H64: 1008 | I64: 971 | J64: 824
D65: Derivative instruments | E65: 60 | F65: 52 | G65: 223 | H65: 24 | I65: 56 | J65: 61
D66: Cash and cash equivalents | E66: 1155 | F66: 1429 | G66: 1591 | H66: 2220 | I66: 3294 | J66: 3171
D67: Assets held for sale | E67: 2733 | I67: 0 | J67: 2195
D68: TOTAL ASSETS | E68: 29841 | F68: 28308 | G68: 40608 | H68: 39497 | I68: 42494 | J68: 40719
C70: EQUITY & LIABILITIES
D71: Common stock | E71: 707 | F71: 691 | G71: 781 | H71: 1146 | I71: 1146 | J71: 1149
D72: Additional paid-in capital | E72: 6420 | F72: 6019 | G72: 8462 | H72: 9620 | I72: 9640 | J72: 9684
D73: Treasury shares | E73: -72 | F73: -55 | G73: -40 | H73: -27 | I73: -26 | J73: -17
D74: Retained earnings | E74: 3023 | F74: 4411 | G74: 5225 | H74: 5555 | I74: 5816 | J74: 6219
D75: Other reserves | E75: 31 | F75: 36 | G75: -613 | H75: -370 | I75: -555 | J75: -751
D76: Foreign currency translation adjustments | E76: 205 | F76: -104 | G76: -905 | H76: -947 | I76: 123 | J76: -280
D77: EQUITY ATTRIBUTABLE TO OWNERS OF THE PARENT COMPANY | E77: 10314 | F77: 10998 | G77: 12910 | H77: 14977 | I77: 16144 | J77: 16004
D78: Non-controlling interests | E78: 1380 | F78: 1079 | G78: 1725 | H78: 1823 | I78: 2080 | J78: 2197
D79: EQUITY | E79: 11694 | F79: 12077 | G79: 14635 | H79: 16800 | I79: 18224 | J79: 18201
D81: NON-CURRENT LIABILITIES | E81: =SUM(E82:E87) -> 11962 | F81: 10720 | G81: 17043 | H81: 16652 | I81: 16765 | J81: 15260
D82: Deferred tax liabilities | E82: 529 | F82: 695 | G82: 923 | H82: 887 | I82: 871 | J82: 933
D83: Pension & other employee benefits | E83: 1057 | F83: 724 | G83: 943 | H83: 1069 | I83: 1108 | J83: 1295
D84: Provisions | E84: 935 | F84: 928 | G84: 976 | H84: 939 | I84: 633 | J84: 637
D85: Long-term debt | E85: 9421 | F85: 8347 | G85: 14149 | H85: 13712 | I85: 14096 | J85: 12266
D86: Derivative instruments | E86: 20 | F86: 26 | G86: 52 | H86: 45 | I86: 57 | J86: 46
D87: Other payables | I87: 0 | J87: 83
D88: CURRENT LIABILITIES | E88: =SUM(E89:E96) -> 6185 | F88: 5511 | G88: 8930 | H88: 6045 | I88: 7505 | J88: 7258
D89: Pension & other employee benefits | E89: 120 | F89: 79 | G89: 67 | H89: 109 | I89: 139 | J89: 167
D90: Provisions | E90: 132 | F90: 201 | G90: 165 | H90: 136 | I90: 146 | J90: 125
D91: Trade payables | E91: 1598 | F91: 1732 | G91: 1864 | H91: 1652 | I91: 1996 | J91: 1964
D92: Other payables | E92: 1668 | F92: 1553 | G92: 2039 | H92: 1630 | I92: 1642 | J92: 1499
D93: Current tax payables | E93: 136 | F93: 148 | G93: 176 | H93: 193 | I93: 314 | J93: 165
D94: Short term debt and current portion of long-term debt | E94: 1664 | F94: 1762 | G94: 4472 | H94: 2265 | I94: 3184 | J94: 2940
D95: Derivative instruments | E95: 25 | F95: 36 | G95: 147 | H95: 60 | I95: 84 | J95: 34
D96: Liabilities associated with assets held for sale | E96: 842 | I96: 0 | J96: 364
D97: TOTAL EQUITY AND LIABILITIES | E97: =E88+E81+E79 -> 29841 | F97: 28308 | G97: 40608 | H97: 39497 | I97: 42494 | J97: 40719
D98: =AND(E98:J98) -> TRUE | E98: =E97=E68 -> TRUE | F98: TRUE | G98: TRUE | H98: TRUE | I98: TRUE | J98: TRUE
B101: Cash Flow Statement
C102: NET CASH PROVIDED BY (USED IN) OPERATING ACTIVITIES
D103: NET INCOME | E103: 1589 | F103: 2156 | G103: 1939 | H103: 1046 | I103: 1114 | J103: 736
D104: NET INCOME FROM DISCONTINUED OPERATIONS | E104: -4 | F104: 118 | G104: - | H104: - | I104: 20 | J104: 492
D105: NET INCOME FROM CONTINUING OPERATIONS | E105: 1593 | F105: 2038 | G105: 1939 | H105: 1046 | I105: 1094 | J105: 244
D106: Adjustments for income and expenses which are non cash or not related
D107: to operating activities, finance income or costs, or income tax:
D108: Depreciation and amortization of assets | E108: 932 | F108: 941 | G108: 1076 | H108: 1123 | I108: 1093 | J108: 1038
D109: Impairment losses | E109: 23 | F109: 13 | G109: 276 | H109: 164 | I109: 154 | J109: 388
D110: Share of net (income) loss of associates | E110: -30 | F110: - | G110: 3 | H110: 18 | I110: 23 | J110: 8
D111: Net (gains) losses on disposals | E111: -28 | F111: -196 | G111: -229 | H111: -103 | I111: -45 | J111: -45
D112: Finance (income) / costs | E112: 485 | F112: 526 | G112: 941 | H112: 926 | I112: 712 | J112: 999
D113: Income tax | E113: 630 | F113: 725 | G113: 479 | H113: 260 | I113: 305 | J113: 432
D114: Others, net (including dividends received from equity-accounted investments ) | E114: 90 | F114: -238 | G114: 22 | H114: -57 | I114: -305 | J114: -59
D115: Change in working capital items, excluding financial expenses and income tax
D116: (see analysis below) | E116: -257 | F116: -79 | G116: -154 | H116: 1029 | I116: 361 | J116: 20
D117: NET OPERATING CASH GENERATED BY CONTINUING OPERATIONS BEFORE IMPACTS
D118: OF FINANCIAL EXPENSES AND INCOME TAX | E118: 3438 | F118: 3730 | G118: 4353 | H118: 4406 | I118: 3392 | J118: 3025
D119: Cash payments for financial expenses | E119: -513 | F119: -478 | G119: -777 | H119: -827 | I119: -911 | J119: -944
D120: Cash payments for income tax | E120: -543 | F120: -550 | G120: -575 | H120: -373 | I120: -383 | J120: -484
D121: NET OPERATING CASH GENERATED BY CONTINUING OPERATIONS | E121: 2382 | F121: 2702 | G121: 3001 | H121: 3206 | I121: 2098 | J121: 1597
D122: NET OPERATING CASH GENERATED BY DISCONTINUED OPERATIONS | E122: 184 | I122: 74 | J122: 22
D123: NET CASH GENERATED BY OPERATING ACTIVITIES | E123: 2566 | I123: 2172 | J123: 1619
D124: NET CASH PROVIDED BY (USED IN) INVESTING ACTIVITIES | F124: 2676 | G124: 3001 | H124: 3206
D126: Capital expenditures | E126: -1639 | F126: -2113 | G126: -2886 | H126: -1645 | I126: -1272 | J126: -1071
D127: Investment in subsidiaries and joint ventures | E127: -3151 | F127: -604 | G127: -6309 | H127: -29 | I127: -27 | J127: -47
D128: Investment in associates | E128: -10 | F128: -225 | G128: -63 | H128: -10 | I128: -3 | J128: -4
D129: Acquisitions of available-for-sale financial assets | E129: -14 | F129: -228 | G129: -11 | H129: -35 | I129: -19 | J129: -3
D130: Disposals | E130: 180 | F130: 2492 | G130: 615 | H130: 760 | I130: 208 | J130: 2084
D131: Net decrease in long-term receivables | E131: -15 | F131: -10 | G131: -117 | H131: -115 | I131: -73 | J131: -68
D132: NET CASH PROVIDED BY (USED IN) INVESTING ACTIVITIES FROM CONTINUING OPERATIONS | E132: -4649 | F132: -688 | G132: -8771 | H132: -1074 | I132: -1186 | J132: 891
D133: NET CASH PROVIDED BY (USED IN) INVESTING ACTIVITIES FROM DISCONTINUED OPERATIONS | E133: -198 | I133: -58 | J133: -48
D134: NET CASH PROVIDED BY (USED IN) INVESTING ACTIVITIES | E134: -4847 | I134: -1244 | J134: 843
D135: NET CASH PROVIDED BY (USED IN) FINANCING ACTIVITIES | F135: 76 | G135: 12 | H135: 1448
D136: Capital increase (decrease) - owners of the parent company | E136: 48 | F136: -23 | G136: 90 | H136: 86 | I136: 26 | J136: 18
D137: Capital increase (decrease) - non controlling interests | E137: 148 | F137: -505 | G137: 8 | H137: - | I137: 15 | J137: -
D138: Acquisitions of ownership interests with no gain of control | E138: 26 | I138: - | J138: -211
D139: Disposals of ownership interests with no loss in control | I139: 139 | J139: 87
D140: Dividends paid | E140: -447 | F140: -521 | G140: -784 | H140: -393 | I140: -575 | J140: -288
D141: Dividends paid by subsidiaries to non controlling interests | E141: -170 | F141: -131 | G141: -267 | H141: -143 | I141: -273 | J141: -199
D142: Proceeds from issuance of long-term debt | E142: 3341 | F142: 1279 | G142: 9208 | H142: 4495 | I142: 2224 | J142: 622
D143: Repayment of long-term debt | E143: -2213 | F143: -2239 | G143: -1094 | H143: -6829 | I143: -1174 | J143: -2442
D144: Increase (decrease) in short-term debt | E144: 1148 | F144: 359 | G144: -1143 | H144: -153 | I144: -323 | J144: -42
D146: Maintenance Capital Expenditures | E146: 1527 | F146: 1967 | G146: 2785 | H146: 1606 | I146: 1252 | J146: 1054
D147: Development Capital Expenditures | E147: 3287 | F147: 1203 | G147: 8976 | H147: 113 | I147: 69 | J147: 71
D148: Total | E148: =SUM(E146:E147) -> 4814 | F148: 3170 | G148: 11761 | H148: 1719 | I148: 1321 | J148: 1125
D150: Operating Income | E150: =E25 -> 2772 | F150: 3242 | G150: 3542 | H150: 2477 | I150: 2393 | J150: 2179
D151: Depreciation | E151: =E108 -> 932 | F151: 941 | G151: 1076 | H151: 1123 | I151: 1093 | J151: 1038
A153: Historic Analysis
B155: Operational Analysis
C156: Cement Volume | E156: =E13 -> 0 | F156: 136.3 | G156: 154.6 | H156: 141.253 | I156: 135.65 | J156: 145.39
C157: Cement Revenue | E157: =E18 -> 8847 | F157: 9456 | G157: 10911 | H157: 9477 | I157: 9656 | J157: 9975
C158: Average Cement Price | F158: =F157/F156 -> 69.37637564 | G158: =G157/G156 -> 70.57567917 | H158: =H157/H156 -> 67.09238034 | I158: =I157/I156 -> 71.18319204 | J158: =J157/J156 -> 68.60857005
C160: Cement Production Capacity | G160: =G14 -> 196.3 | H160: =H14 -> 201.3 | I160: =I14 -> 216.5 | J160: =J14 -> 221
C161: Capacity Incease | H161: =H160-G160 -> 5 | I161: =I160-H160 -> 15.2 | J161: =J160-I160 -> 4.5
C162: Utilisation Rate | G162: =G156/G160 -> 0.7875700458 | H162: =H156/H160 -> 0.7017039245 | I162: =I156/I160 -> 0.6265588915 | J162: =J156/J160 -> 0.6578733032
C164: Aggregates and concrete Percent of Cement | E164: =E19/E18 -> 0.7278173392 | F164: 0.6964890017 | G164: 0.6024195766 | H164: 0.5343463121 | I164: 0.5269262635 | J164: 0.5240100251
C165: Other Percent of Cement | E165: =(E20+E21)/E157 -> 0.1834520176 | F165: 0.1662436548 | G165: 0.1419668225 | H165: 0.1417115121 | I165: 0.00932062966 | J165: 0.008220551378
C167: EBITDA | E167: =SUM(E150:E152) -> 3704 | F167: 4183 | G167: 4618 | H167: 3600 | I167: 3486 | J167: 3217
C168: Revenue | E168: =E22 -> 16909 | F168: 17614 | G168: 19033 | H168: 15884 | I168: 14834 | J168: 15284
C169: Revenue Growth | F169: =F168/E168-1 -> 0.04169377255 | G169: =G168/F168-1 -> 0.08056091745 | H169: =H168/G168-1 -> -0.1654494825 | I169: =I168/H168-1 -> -0.06610425585 | J169: =J168/I168-1 -> 0.03033571525
C170: Cash Operating Expenses | E170: =E168-E167 -> 13205 | F170: 13431 | G170: 14415 | H170: 12284 | I170: 11348 | J170: 12067
C171: Less: SG&A | E171: =E24 -> -1752 | F171: -1672 | G171: -1762 | H171: -1700 | I171: -1521 | J171: -1478
C172: Cash COGS | E172: =E170+E171 -> 11453 | F172: 11759 | G172: 12653 | H172: 10584 | I172: 9827 | J172: 10589
C173: Cash COGS per Tonne | F173: =F172/F156 -> 86.27292737 | G173: =G172/G156 -> 81.84346701 | H173: =H172/H156 -> 74.92938203 | I173: =I172/I156 -> 72.44378916 | J173: =J172/J156 -> 72.83169406
C175: SG&A | E175: =-E171 -> 1752 | F175: 1672 | G175: 1762 | H175: 1700 | I175: 1521 | J175: 1478
C176: Revenue | E176: =E168 -> 16909 | F176: 17614 | G176: 19033 | H176: 15884 | I176: 14834 | J176: 15284
C177: SG&A % of Revenue | E177: =E175/E176 -> 0.1036134603 | F177: 0.09492449188 | G177: 0.09257605212 | H177: 0.1070259381 | I177: 0.1025347175 | J177: 0.09670243392
C179: Depreciation | E179: =E151 -> 932 | F179: 941 | G179: 1076 | H179: 1123 | I179: 1093 | J179: 1038
C180: Net Plant | E180: =E55 -> 11183 | F180: 11904 | G180: 16927 | H180: 16699 | I180: 17912 | J180: 15542
C181: Depreciation Rate on Net Plant | E181: =E179/E180 -> 0.08334078512 | F181: 0.07904905914 | G181: 0.06356708218 | H181: 0.0672495359 | I181: 0.06102054489 | J181: 0.06678677133
C183: Maintenance Capital Expenditure | E183: =E146 -> 1527 | F183: 1967 | G183: 2785 | H183: 1606 | I183: 1252 | J183: 1054
C184: Maintenance Cap Exp per Capacity | G184: =G183/G160 -> 14.18746816 | H184: =H183/H160 -> 7.978142077 | I184: =I183/I160 -> 5.782909931 | J184: =J183/J160 -> 4.769230769
C185: Development Capital Expenditure | E185: =E147 -> 3287 | F185: 1203 | G185: 8976 | H185: 113 | I185: 69 | J185: 71
C186: New Capacity | H186: =H161 -> 5 | I186: =I161 -> 15.2 | J186: =J161 -> 4.5
C187: Cap Exp per New Capacity | H187: =H185/H186 -> 22.6 | I187: =I185/I186 -> 4.539473684 | J187: =J185/J186 -> 15.77777778
B189: Other Income
C190: Net Gains on Disposal | E190: =E26 -> 28 | F190: 196 | G190: 229 | H190: 103 | I190: 45 | J190: 45
C191: Impairment | E191: =E109 -> 23 | F191: 13 | G191: 276 | H191: 164 | I191: 154 | J191: 388
C192: Other Operating Expenses | E192: =-E27-E191 -> 99 | F192: 136 | G192: 133 | H192: 166 | I192: 150 | J192: 153
C193: Income from Associates | E193: =E31 -> 30 | F193: 0 | G193: -3 | H193: -18 | I193: -23 | J193: -8
C194: Income from Disccontinued Items | E194: =E35 -> -4 | F194: 118 | G194: 0 | H194: 0 | I194: 20 | J194: 492
B196: Working Capital Analysis
C197: A/R to sales | E197: =(E63+E64)/E22 -> 0.224732391 | F197: 0.2030203247 | G197: 0.192875532 | H197: 0.1696046336 | I197: 0.185047863 | J197: 0.1693928291
C198: Inventory to COGS | E198: =E62/E172 -> 0.1413603423 | F198: 0.1497576325 | G198: 0.1734766459 | H198: 0.160808768 | I198: 0.1675994708 | J198: 0.1445840023
C199: A/P to Expenses | E199: =(E91+E92+E93+E87)/E170 -> 0.2576296857 | F199: 0.2556027101 | G199: 0.2829691294 | H199: 0.28288831 | I199: 0.3482551992 | J199: 0.3075329411
B201: Financing Analysis
C202: Finance cost | E202: =-E29 -> 582 | F202: 652 | G202: 1157 | H202: 1136 | I202: 1055 | J202: 1142
C203: Average Debt Balance | E203: =AVERAGE(D229:E229) -> 10314 | F203: 10656 | G203: 11954 | H203: 13943.5 | I203: 15560.5 | J203: 16074
C204: Average Interest Rate | E204: =E202/E203 -> 0.0564281559 | F204: 0.06118618619 | G204: 0.09678768613 | H204: 0.08147165346 | I204: 0.0677998779 | J204: 0.07104641035
C206: Financial Income | E206: =E30 -> 97 | F206: 126 | G206: 216 | H206: 210 | I206: 343 | J206: 143
C207: Average Cash Balance | E207: =-AVERAGE(D231:E231) -> 1985 | F207: 2255 | G207: 2631.5 | H207: 3274.5 | I207: 3984 | J207: 4041.5
C208: Average Interest Income Rate | E208: =E206/E207 -> 0.04886649874 | F208: 0.05587583149 | G208: 0.08208246247 | H208: 0.06413192854 | I208: 0.08609437751 | J208: 0.03538290239
C210: Common Share Payout Ratio | E210: =-E140/E38 -> 0.3258017493 | F210: 0.272917758 | G210: 0.4906132666 | H210: 0.5339673913 | I210: 0.6952841596 | J210: 0.4856661046
C211: Minority Dividend Payout Ratio | E211: 0.7834101382 | F211: 0.5303643725 | G211: 0.7829912023 | H211: 0.4612903226 | I211: 0.9512195122 | J211: 1.391608392
C212: Minority as Percent of Total Income | E212: =E39/E36 -> 0.1365638767 | F212: 0.1145640074 | G212: 0.1758638473 | H212: 0.2963671128 | I212: 0.2576301616 | J212: 0.1942934783
C214: Effective Tax Rate | E214: =-E33/E32 -> 0.2834008097 | F214: 0.2623959464 | G214: 0.1980976013 | H214: 0.1990811639 | I214: 0.2180128663 | J214: 0.6390532544
B216: Financial Analysis
C217: EBITDA Margin | E217: =E167/E22 -> 0.2190549412 | F217: 0.2374815488 | G217: 0.2426312195 | H217: 0.2266431629 | I217: 0.2350006741 | J217: 0.2104815493
C218: ROE -- Total Equity | E218: =E36/AVERAGE(E79,D79) -> 0.1358816487 | F218: 0.1813975012 | G218: 0.1451781971 | H218: 0.06655002386 | I218: 0.06361352216 | J218: 0.04041180508
C219: ROE (CONTROLLING INTEREST) | E219: =E38/AVERAGE(E77,D77) -> 0.1330230754 | F219: 0.1791478979 | G219: 0.1336791032 | H219: 0.05278445154 | I219: 0.05314739244 | J219: 0.03689187508
C220: ROE (MINORITY INTEREST) | E220: 0.1572463768 | F220: 0.2008946726 | G220: 0.2432239658 | H220: 0.174746336 | I220: 0.1470663592 | J220: 0.06686930091
C222: Return on Invested Capital
D223: EBIT | E223: =E167-E179 -> 2772 | F223: 3242 | G223: 3542 | H223: 2477 | I223: 2393 | J223: 2179
D224: Tax rate | E224: =$K$356 -> 0.3 | F224: 0.3 | G224: 0.3 | H224: 0.3 | I224: 0.3 | J224: 0.3
D225: NOPAT=EBIT(1-TAXES) | E225: =E223*(1-E224) -> 1940.4 | F225: 2269.4 | G225: 2479.4 | H225: 1733.9 | I225: 1675.1 | J225: 1525.3
D227: INVESTED CAPITAL
D228: Total Long and Short-term Debt | E228: =E85+E94 -> 11085 | F228: 10109 | G228: 18621 | H228: 15977 | I228: 17280 | J228: 15206
D229: Plus: Common Shares | E229: =E77 -> 10314 | F229: 10998 | G229: 12910 | H229: 14977 | I229: 16144 | J229: 16004
D230: Plus: Minority Interest | E230: 1380 | F230: 1079 | G230: 1725 | H230: 1823 | I230: 2080 | J230: 2197
... 367 more rows

Sheet Valuation and Analysis
E1: 2006 | F1: 2007 | G1: 2008 | H1: 2009 | I1: 2010 | J1: 2011 | K1: 2012 | L1: 2013 | M1: 2014 | N1: 2015 | O1: 2016 | P1: 2017 | Q1: 2018 | R1: 2019 | S1: 2020 | T1: 2021 | U1: 2022
C2: Historic switch | E2: =E1<=$E$8 -> TRUE | F2: TRUE | G2: TRUE | H2: TRUE | I2: TRUE | J2: TRUE | K2: FALSE | L2: FALSE | M2: FALSE | N2: FALSE | O2: FALSE | P2: FALSE | Q2: FALSE | R2: FALSE | S2: FALSE | T2: FALSE | U2: FALSE
C3: Explicit Forecast Period | E3: =AND(E1>$E$8,E1<=$E$10) -> FALSE | F3: FALSE | G3: FALSE | H3: FALSE | I3: FALSE | J3: FALSE | K3: TRUE | L3: TRUE | M3: TRUE | N3: TRUE | O3: TRUE | P3: TRUE | Q3: FALSE | R3: FALSE | S3: FALSE | T3: FALSE | U3: FALSE
C4: Terminal Period | E4: =E1=$E$10 -> FALSE | F4: FALSE | G4: FALSE | H4: FALSE | I4: FALSE | J4: FALSE | K4: FALSE | L4: FALSE | M4: FALSE | N4: FALSE | O4: FALSE | P4: TRUE | Q4: FALSE | R4: FALSE | S4: FALSE | T4: FALSE | U4: FALSE
A6: Valuation Assumptions
B7: Date Parameters for Valuation
C8: last historic year | E8: 2011
C9: Explicit Period | E9: 5
C10: Terminal Period | E10: =E8+E9+1 -> 2017
C11: Explicit Period | E11: 6
B13: DCF Parameters
C14: WACC | E14: 0.095 | F14: wacc
C15: Growth Rate | E15: 0.02 | F15: growth
C16: Long-term ROIC vs WACC | E16: 0.01 | F16: roic spread
C17: Long-term ROIC | E17: =roic_spread+wacc -> 0.105 | F17: long-term roic
C18: Terminal EV/EBITDA Ratio | E18: 6 | F18: EV/EBITDA
B20: Equity Valuation
C21: Cost of Equity
C22: Growth Rate
C23: ROE in Terminal Year
C24: Implied Payout Ratio
C25: Long-term ROE vs COE
C26: Long-term ROE
A29: Free Cash Flow (FCF)
C31: EBITDA | E31: ='Financial Model'!E421 -> 3704 | F31: ='Financial Model'!F421 -> 4183 | G31: ='Financial Model'!G421 -> 4618 | H31: ='Financial Model'!H421 -> 3600 | I31: ='Financial Model'!I421 -> 3486 | J31: ='Financial Model'!J421 -> 3217 | K31: ='Financial Model'!K421 -> 3642.54396 | L31: ='Financial Model'!L421 -> 4264.24702 | M31: ='Financial Model'!M421 -> 5136.2829 | N31: ='Financial Model'!N421 -> 5971.02984 | O31: ='Financial Model'!O421 -> 6454.90584 | P31: ='Financial Model'!P421 -> 6938.78184 | Q31: ='Financial Model'!Q421 -> 7422.65784 | R31: ='Financial Model'!R421 -> 7906.53384 | S31: ='Financial Model'!S421 -> 8390.40984 | T31: ='Financial Model'!T421 -> 8874.28584 | U31: ='Financial Model'!U421 -> 9358.16184
C32: Less CAPEX | E32: ='Financial Model'!E433 -> 4814 | F32: ='Financial Model'!F433 -> 3170 | G32: ='Financial Model'!G433 -> 11761 | H32: ='Financial Model'!H433 -> 1719 | I32: ='Financial Model'!I433 -> 1321 | J32: ='Financial Model'!J433 -> 1125 | K32: ='Financial Model'!K433 -> 1722 | L32: ='Financial Model'!L433 -> 1953.91 | M32: ='Financial Model'!M433 -> 2198.1848 | N32: ='Financial Model'!N433 -> 2455.357569 | O32: ='Financial Model'!O433 -> 2725.982338 | P32: ='Financial Model'!P433 -> 3010.634771 | Q32: ='Financial Model'!Q433 -> 3309.912966 | R32: ='Financial Model'!R433 -> 3624.438281 | S32: ='Financial Model'!S433 -> 3954.856194 | T32: ='Financial Model'!T433 -> 4301.837187 | U32: ='Financial Model'!U433 -> 4666.077669
C33: Less Changing in Working Capital | E33: ='Financial Model'!E453 -> 0 | F33: ='Financial Model'!F453 -> -113 | G33: ='Financial Model'!G453 -> -117 | H33: ='Financial Model'!H453 -> -866 | I33: ='Financial Model'!I453 -> -481 | J33: ='Financial Model'!J453 -> -31 | K33: ='Financial Model'!K453 -> 217.549616 | L33: ='Financial Model'!L453 -> 103.183476 | M33: ='Financial Model'!M453 -> 140.906748 | N33: ='Financial Model'!N453 -> 137.163024 | O33: ='Financial Model'!O453 -> 81.6696 | P33: ='Financial Model'!P453 -> 81.6696 | Q33: ='Financial Model'!Q453 -> 81.6696 | R33: ='Financial Model'!R453 -> 81.6696 | S33: ='Financial Model'!S453 -> 81.6696 | T33: ='Financial Model'!T453 -> 81.6696 | U33: ='Financial Model'!U453 -> 81.6696
C34: Less (EBIT X Tax Rate) | E34: ='Financial Model'!E468 -> 785.5870445 | F34: ='Financial Model'!F468 -> 850.6876583 | G34: ='Financial Model'!G468 -> 701.6617039 | H34: ='Financial Model'!H468 -> 493.1240429 | I34: ='Financial Model'!I468 -> 521.7047891 | J34: ='Financial Model'!J468 -> 1392.497041 | K34: ='Financial Model'!K468 -> 766.381188 | L34: ='Financial Model'!L468 -> 939.576846 | M34: ='Financial Model'!M468 -> 1183.934308 | N34: ='Financial Model'!N468 -> 1413.183049 | O34: ='Financial Model'!O468 -> 1533.252153 | P34: ='Financial Model'!P468 -> 1649.394696 | Q34: ='Financial Model'!Q468 -> 1761.590956 | R34: ='Financial Model'!R468 -> 1869.810031 | S34: ='Financial Model'!S468 -> 1974.010136 | T34: ='Financial Model'!T468 -> 2074.138853 | U34: ='Financial Model'!U468 -> 2170.133355
D35: Free Cash Flow | E35: =E31-SUM(E32:E34) -> -1895.587045 | F35: 275.3123417 | G35: -7727.661704 | H35: 2253.875957 | I35: 2124.295211 | J35: 730.5029586 | K35: 936.613156 | L35: 1267.576698 | M35: 1613.257044 | N35: 1965.326198 | O35: 2114.001749 | P35: 2197.082773 | Q35: 2269.484318 | R35: 2330.615928 | S35: 2379.87391 | T35: 2416.6402 | U35: 2440.281216
C37: FCF over Explicit Period | E37: =IF('Financial Model'!E5,E35) -> FALSE | F37: =IF('Financial Model'!F5,F35) -> FALSE | G37: =IF('Financial Model'!G5,G35) -> FALSE | H37: =IF('Financial Model'!H5,H35) -> FALSE | I37: =IF('Financial Model'!I5,I35) -> FALSE | J37: =IF('Financial Model'!J5,J35) -> FALSE | K37: =IF('Financial Model'!K5,K35) -> 936.613156 | L37: =IF('Financial Model'!L5,L35) -> 1267.576698 | M37: =IF('Financial Model'!M5,M35) -> 1613.257044 | N37: =IF('Financial Model'!N5,N35) -> 1965.326198 | O37: =IF('Financial Model'!O5,O35) -> 2114.001749 | P37: =IF('Financial Model'!P5,P35) -> 2197.082773 | Q37: =IF('Financial Model'!Q5,Q35) -> 2269.484318 | R37: =IF('Financial Model'!R5,R35) -> FALSE | S37: =IF('Financial Model'!S5,S35) -> FALSE | T37: =IF('Financial Model'!T5,T35) -> FALSE | U37: =IF('Financial Model'!U5,U35) -> FALSE
C38: PV of Free Cash Flow | E38: =NPV(E14,E37:U37) -> 8328.080656
C40: Terminal Value using Growth | E40: =IF('Financial Model'!E5,E37*(1+growth)/(wacc-growth)*'Financial Model'!E6) -> FALSE | F40: =IF('Financial Model'!F5,F37*(1+growth)/(wacc-growth)*'Financial Model'!F6) -> FALSE | G40: =IF('Financial Model'!G5,G37*(1+growth)/(wacc-growth)*'Financial Model'!G6) -> FALSE | H40: =IF('Financial Model'!H5,H37*(1+growth)/(wacc-growth)*'Financial Model'!H6) -> FALSE | I40: =IF('Financial Model'!I5,I37*(1+growth)/(wacc-growth)*'Financial Model'!I6) -> FALSE | J40: =IF('Financial Model'!J5,J37*(1+growth)/(wacc-growth)*'Financial Model'!J6) -> FALSE | K40: =IF('Financial Model'!K5,K37*(1+growth)/(wacc-growth)*'Financial Model'!K6) -> 0 | L40: =IF('Financial Model'!L5,L37*(1+growth)/(wacc-growth)*'Financial Model'!L6) -> 0 | M40: =IF('Financial Model'!M5,M37*(1+growth)/(wacc-growth)*'Financial Model'!M6) -> 0 | N40: =IF('Financial Model'!N5,N37*(1+growth)/(wacc-growth)*'Financial Model'!N6) -> 0 | O40: =IF('Financial Model'!O5,O37*(1+growth)/(wacc-growth)*'Financial Model'!O6) -> 0 | P40: =IF('Financial Model'!P5,P37*(1+growth)/(wacc-growth)*'Financial Model'!P6) -> 0 | Q40: =IF('Financial Model'!Q5,Q37*(1+growth)/(wacc-growth)*'Financial Model'!Q6) -> 30864.98673 | R40: =IF('Financial Model'!R5,R37*(1+growth)/(wacc-growth)*'Financial Model'!R6) -> FALSE | S40: =IF('Financial Model'!S5,S37*(1+growth)/(wacc-growth)*'Financial Model'!S6) -> FALSE | T40: =IF('Financial Model'!T5,T37*(1+growth)/(wacc-growth)*'Financial Model'!T6) -> FALSE | U40: =IF('Financial Model'!U5,U37*(1+growth)/(wacc-growth)*'Financial Model'!U6) -> FALSE
C42: PV of TV | E42: =NPV($E$14,E40:U40) -> 16351.86377 | F42: =E42/E45 -> 0.6625567501
I43: Range in Implied EV/EBITDA from Applying the Discounted Cash Flow Model
C45: Enterprise Value | E45: =E38+E42 -> 24679.94443 | K45: Weighted Averge Cost of Capital
C46: Implied EV to EBITDA | E46: =E45/K31 -> 6.775469205
J47: =E46 -> 6.775469205 | K47: 0.07 | L47: 0.08 | M47: 0.09 | N47: 0.1
D48: Year of Valuation | E48: =MATCH('Financial Model'!E8,'Financial Model'!3:3) -> 10 | J48: 0 | K48: 8.064036326 | L48: 6.967519473 | M48: 6.117692655 | N48: 5.440409488
I49: Terminal | J49: 0.01 | K49: 9.052522111 | L49: 7.668638615 | M49: 6.633670317 | N49: 5.831181782
D50: Less Debt | E50: =-INDEX('Financial Model'!228:228,E48) -> -15206 | I50: Growth | J50: 0.02 | K50: 10.43640221 | L50: 8.603464138 | M50: 7.297070168 | N50: 6.319647149
D51: Add Cash | E51: =-'Financial Model'!J231 -> 3926 | I51: Rate | J51: 0.03 | K51: 12.51222236 | L51: 9.91221987 | M51: 8.181603303 | N51: 6.94767405
D52: Less Pensions | E52: =-'Financial Model'!J233 -> -1462 | J52: 0.04 | K52: 15.9719226 | L52: 11.87535347 | M52: 9.419949692 | N52: 7.78504325
D53: Add Non Associated Investments | E53: =-'Financial Model'!J232 -> 604
D54: Add: Minority Interest | E54: =-'Financial Model'!J230 -> -2197
D55: Add: Derivative | E55: =-'Financial Model'!J234 -> 61
D56: Add: Assets Held for Sale | E56: =-'Financial Model'!J235 -> 1831
D58: Total Bridge between Equity and EV | E58: =SUM(E50:E57) -> -12443
D60: Equity Value | E60: =E45+E58 -> 12236.94443
D61: Shares at Valuation Date | E61: ='Financial Model'!J44 -> 286514
D63: Value per Share | E63: =E60/E61*1000 -> 42.70976088
C68: Terminal Value using PV EV / EBITDA Ratio | E68: =IF('Financial Model'!E5,EV_EBITDA*E31*'Financial Model'!E6) -> FALSE | F68: =IF('Financial Model'!F5,EV_EBITDA*F31*'Financial Model'!F6) -> FALSE | G68: =IF('Financial Model'!G5,EV_EBITDA*G31*'Financial Model'!G6) -> FALSE | H68: =IF('Financial Model'!H5,EV_EBITDA*H31*'Financial Model'!H6) -> FALSE | I68: =IF('Financial Model'!I5,EV_EBITDA*I31*'Financial Model'!I6) -> FALSE | J68: =IF('Financial Model'!J5,EV_EBITDA*J31*'Financial Model'!J6) -> FALSE | K68: =IF('Financial Model'!K5,EV_EBITDA*K31*'Financial Model'!K6) -> 0 | L68: =IF('Financial Model'!L5,EV_EBITDA*L31*'Financial Model'!L6) -> 0 | M68: =IF('Financial Model'!M5,EV_EBITDA*M31*'Financial Model'!M6) -> 0 | N68: =IF('Financial Model'!N5,EV_EBITDA*N31*'Financial Model'!N6) -> 0 | O68: =IF('Financial Model'!O5,EV_EBITDA*O31*'Financial Model'!O6) -> 0 | P68: =IF('Financial Model'!P5,EV_EBITDA*P31*'Financial Model'!P6) -> 0 | Q68: =IF('Financial Model'!Q5,EV_EBITDA*Q31*'Financial Model'!Q6) -> 44535.94704 | R68: =IF('Financial Model'!R5,EV_EBITDA*R31*'Financial Model'!R6) -> FALSE | S68: =IF('Financial Model'!S5,EV_EBITDA*S31*'Financial Model'!S6) -> FALSE | T68: =IF('Financial Model'!T5,EV_EBITDA*T31*'Financial Model'!T6) -> FALSE | U68: =IF('Financial Model'!U5,EV_EBITDA*U31*'Financial Model'!U6) -> FALSE
C69: PV of TV | E69: =NPV(wacc,E68:U68) -> 23594.55863
C70: Total EV | E70: =E69+E38 -> 31922.63928
C72: Bridge between EV and Equity Value | E72: =E58 -> -12443 | I72: =E70 -> 31922.63928 | J72: 0.07 | K72: 0.08 | L72: 0.09 | M72: 0.1
I73: 6.5 | J73: 39229.2887 | K73: 36978.53932 | L73: 34882.59171 | M73: 32929.36904
C74: Equity Value | E74: =E70+E72 -> 19479.63928 | I74: 7 | J74: 41540.51783 | K74: 39144.0641 | L74: 36912.81572 | M74: 34833.8676
C75: Shares | E75: =E61 -> 286514 | I75: 7.5 | J75: 43851.74695 | K75: 41309.58887 | L75: 38943.03973 | M75: 36738.36617
C76: Value per Share | E76: =E74/E75*1000 -> 67.98843786 | I76: 8 | J76: 46162.97608 | K76: 43475.11365 | L76: 40973.26375 | M76: 38642.86473
B79: Terminal Value using PV of Value Drivers
C80: Value Driver Formula: P/E = (1-g/ROE)/(k-g)
C81: Value Driver Formula: EV = NOPLAT x (1-g/ROIC)/(WACC-g)
C82: NOPLAT Multiplier | E82: =(1-growth/long_term_roic)/(wacc-growth) -> 10.79365079
C84: PV of TV
C85: EBIT | E85: ='Financial Model'!E466 -> 2772 | F85: ='Financial Model'!F466 -> 3242 | G85: ='Financial Model'!G466 -> 3542 | H85: ='Financial Model'!H466 -> 2477 | I85: ='Financial Model'!I466 -> 2393 | J85: ='Financial Model'!J466 -> 2179 | K85: ='Financial Model'!K466 -> 2554.60396 | L85: ='Financial Model'!L466 -> 3131.92282 | M85: ='Financial Model'!M466 -> 3946.447694 | N85: ='Financial Model'!N466 -> 4710.610162 | O85: ='Financial Model'!O466 -> 5110.84051 | P85: ='Financial Model'!P466 -> 5497.982319 | Q85: ='Financial Model'!Q466 -> 5871.969852 | R85: ='Financial Model'!R466 -> 6232.700103 | S85: ='Financial Model'!S466 -> 6580.033785 | T85: ='Financial Model'!T466 -> 6913.796176 | U85: ='Financial Model'!U466 -> 7233.777849
C86: Taxes on EBIT | E86: =E34 -> 785.5870445 | F86: 850.6876583 | G86: 701.6617039 | H86: 493.1240429 | I86: 521.7047891 | J86: 1392.497041 | K86: 766.381188 | L86: 939.576846 | M86: 1183.934308 | N86: 1413.183049 | O86: 1533.252153 | P86: 1649.394696 | Q86: 1761.590956 | R86: 1869.810031 | S86: 1974.010136 | T86: 2074.138853 | U86: 2170.133355
C87: NOPLAT | E87: =E85-E86 -> 1986.412955 | F87: 2391.312342 | G87: 2840.338296 | H87: 1983.875957 | I87: 1871.295211 | J87: 786.5029586 | K87: 1788.222772 | L87: 2192.345974 | M87: 2762.513386 | N87: 3297.427114 | O87: 3577.588357 | P87: 3848.587624 | Q87: 4110.378896 | R87: 4362.890072 | S87: 4606.02365 | T87: 4839.657323 | U87: 5063.644494
C88: Multiplier | E88: =$E$82 -> 10.79365079 | F88: 10.79365079 | G88: 10.79365079 | H88: 10.79365079 | I88: 10.79365079 | J88: 10.79365079 | K88: 10.79365079 | L88: 10.79365079 | M88: 10.79365079 | N88: 10.79365079 | O88: 10.79365079 | P88: 10.79365079 | Q88: 10.79365079 | R88: 10.79365079 | S88: 10.79365079 | T88: 10.79365079 | U88: 10.79365079
C90: Terminal Value | E90: =IF('Financial Model'!E5,E88*E87*'Financial Model'!E6) -> FALSE | F90: =IF('Financial Model'!F5,F88*F87*'Financial Model'!F6) -> FALSE | G90: =IF('Financial Model'!G5,G88*G87*'Financial Model'!G6) -> FALSE | H90: =IF('Financial Model'!H5,H88*H87*'Financial Model'!H6) -> FALSE | I90: =IF('Financial Model'!I5,I88*I87*'Financial Model'!I6) -> FALSE | J90: =IF('Financial Model'!J5,J88*J87*'Financial Model'!J6) -> FALSE | K90: =IF('Financial Model'!K5,K88*K87*'Financial Model'!K6) -> 0 | L90: =IF('Financial Model'!L5,L88*L87*'Financial Model'!L6) -> 0 | M90: =IF('Financial Model'!M5,M88*M87*'Financial Model'!M6) -> 0 | N90: =IF('Financial Model'!N5,N88*N87*'Financial Model'!N6) -> 0 | O90: =IF('Financial Model'!O5,O88*O87*'Financial Model'!O6) -> 0 | P90: =IF('Financial Model'!P5,P88*P87*'Financial Model'!P6) -> 0 | Q90: =IF('Financial Model'!Q5,Q88*Q87*'Financial Model'!Q6) -> 44365.99444 | R90: =IF('Financial Model'!R5,R88*R87*'Financial Model'!R6) -> FALSE | S90: =IF('Financial Model'!S5,S88*S87*'Financial Model'!S6) -> FALSE | T90: =IF('Financial Model'!T5,T88*T87*'Financial Model'!T6) -> FALSE | U90: =IF('Financial Model'!U5,U88*U87*'Financial Model'!U6) -> FALSE
C91: PV of Terminal Value | E91: =NPV(wacc,E90:U90) -> 23504.51998
C92: Explicit Period Value | E92: =E38 -> 8328.080656
C94: Enterprise Value | E94: =E91+E92 -> 31832.60063
C95: Bridge between Equity and Enterprise Value | E95: =E58 -> -12443
C96: Total Equity Value | E96: =SUM(E94:E95) -> 19389.60063
C97: Equity Value per Share | E97: =E96/E75*1000 -> 67.67418217
C99: INVESTMENT CAPITAL - ASSETS
D100: Goodwill | E100: =IF('Financial Model'!E$4,'Financial Model'!E239,D100) -> 7511 | F100: =IF('Financial Model'!F$4,'Financial Model'!F239,E100) -> 7471 | G100: =IF('Financial Model'!G$4,'Financial Model'!G239,F100) -> 13374 | H100: =IF('Financial Model'!H$4,'Financial Model'!H239,G100) -> 13249 | I100: =IF('Financial Model'!I$4,'Financial Model'!I239,H100) -> 14327 | J100: =IF('Financial Model'!J$4,'Financial Model'!J239,I100) -> 12701 | K100: =IF('Financial Model'!K$4,'Financial Model'!K239,J100) -> 12701 | L100: =IF('Financial Model'!L$4,'Financial Model'!L239,K100) -> 12701 | M100: =IF('Financial Model'!M$4,'Financial Model'!M239,L100) -> 12701 | N100: =IF('Financial Model'!N$4,'Financial Model'!N239,M100) -> 12701 | O100: =IF('Financial Model'!O$4,'Financial Model'!O239,N100) -> 12701 | P100: =IF('Financial Model'!P$4,'Financial Model'!P239,O100) -> 12701 | Q100: =IF('Financial Model'!Q$4,'Financial Model'!Q239,P100) -> 12701 | R100: =IF('Financial Model'!R$4,'Financial Model'!R239,Q100) -> 12701 | S100: =IF('Financial Model'!S$4,'Financial Model'!S239,R100) -> 12701 | T100: =IF('Financial Model'!T$4,'Financial Model'!T239,S100) -> 12701 | U100: =IF('Financial Model'!U$4,'Financial Model'!U239,T100) -> 12701
D101: Intangibles | E101: =IF('Financial Model'!E$4,'Financial Model'!E240,D101) -> 426 | F101: =IF('Financial Model'!F$4,'Financial Model'!F240,E101) -> 472 | G101: =IF('Financial Model'!G$4,'Financial Model'!G240,F101) -> 614 | H101: =IF('Financial Model'!H$4,'Financial Model'!H240,G101) -> 632 | I101: =IF('Financial Model'!I$4,'Financial Model'!I240,H101) -> 661 | J101: =IF('Financial Model'!J$4,'Financial Model'!J240,I101) -> 652 | K101: =IF('Financial Model'!K$4,'Financial Model'!K240,J101) -> 652 | L101: =IF('Financial Model'!L$4,'Financial Model'!L240,K101) -> 652 | M101: =IF('Financial Model'!M$4,'Financial Model'!M240,L101) -> 652 | N101: =IF('Financial Model'!N$4,'Financial Model'!N240,M101) -> 652 | O101: =IF('Financial Model'!O$4,'Financial Model'!O240,N101) -> 652 | P101: =IF('Financial Model'!P$4,'Financial Model'!P240,O101) -> 652 | Q101: =IF('Financial Model'!Q$4,'Financial Model'!Q240,P101) -> 652 | R101: =IF('Financial Model'!R$4,'Financial Model'!R240,Q101) -> 652 | S101: =IF('Financial Model'!S$4,'Financial Model'!S240,R101) -> 652 | T101: =IF('Financial Model'!T$4,'Financial Model'!T240,S101) -> 652 | U101: =IF('Financial Model'!U$4,'Financial Model'!U240,T101) -> 652
D102: Net Plant | E102: ='Financial Model'!E461 -> 11183 | F102: ='Financial Model'!F461 -> 11904 | G102: ='Financial Model'!G461 -> 16927 | H102: ='Financial Model'!H461 -> 16699 | I102: ='Financial Model'!I461 -> 17912 | J102: ='Financial Model'!J461 -> 15542 | K102: ='Financial Model'!K461 -> 16176.06 | L102: ='Financial Model'!L461 -> 16997.6458 | M102: ='Financial Model'!M461 -> 18005.99539 | N102: ='Financial Model'!N461 -> 19200.93329 | O102: ='Financial Model'!O461 -> 20582.85029 | P102: ='Financial Model'!P461 -> 22152.68554 | Q102: ='Financial Model'!Q461 -> 23911.91052 | R102: ='Financial Model'!R461 -> 25862.51507 | S102: ='Financial Model'!S461 -> 28006.99521 | T102: ='Financial Model'!T461 -> 30348.34273 | U102: ='Financial Model'!U461 -> 32890.03641
D103: Long-term Receivables | E103: =IF('Financial Model'!E$4,'Financial Model'!E242,D103) -> 0 | F103: =IF('Financial Model'!F$4,'Financial Model'!F242,E103) -> 0 | G103: =IF('Financial Model'!G$4,'Financial Model'!G242,F103) -> 0 | H103: =IF('Financial Model'!H$4,'Financial Model'!H242,G103) -> 0 | I103: =IF('Financial Model'!I$4,'Financial Model'!I242,H103) -> 0 | J103: =IF('Financial Model'!J$4,'Financial Model'!J242,I103) -> 34 | K103: =IF('Financial Model'!K$4,'Financial Model'!K242,J103) -> 34 | L103: =IF('Financial Model'!L$4,'Financial Model'!L242,K103) -> 34 | M103: =IF('Financial Model'!M$4,'Financial Model'!M242,L103) -> 34 | N103: =IF('Financial Model'!N$4,'Financial Model'!N242,M103) -> 34 | O103: =IF('Financial Model'!O$4,'Financial Model'!O242,N103) -> 34 | P103: =IF('Financial Model'!P$4,'Financial Model'!P242,O103) -> 34 | Q103: =IF('Financial Model'!Q$4,'Financial Model'!Q242,P103) -> 34 | R103: =IF('Financial Model'!R$4,'Financial Model'!R242,Q103) -> 34 | S103: =IF('Financial Model'!S$4,'Financial Model'!S242,R103) -> 34 | T103: =IF('Financial Model'!T$4,'Financial Model'!T242,S103) -> 34 | U103: =IF('Financial Model'!U$4,'Financial Model'!U242,T103) -> 34
D104: Receivables and Inventories | E104: ='Financial Model'!E440+'Financial Model'!E445 -> 5419 | F104: ='Financial Model'!F440+'Financial Model'!F445 -> 5337 | G104: ='Financial Model'!G440+'Financial Model'!G445 -> 5866 | H104: ='Financial Model'!H440+'Financial Model'!H445 -> 4396 | I104: ='Financial Model'!I440+'Financial Model'!I445 -> 4392 | J104: ='Financial Model'!J440+'Financial Model'!J445 -> 4120 | K104: ='Financial Model'!K440+'Financial Model'!K445 -> 4343.867748 | L104: ='Financial Model'!L440+'Financial Model'!L445 -> 4856.221326 | M104: ='Financial Model'!M440+'Financial Model'!M445 -> 5341.59927 | N104: ='Financial Model'!N440+'Financial Model'!N445 -> 5945.397192 | O104: ='Financial Model'!O440+'Financial Model'!O445 -> 6427.195992 | P104: ='Financial Model'!P440+'Financial Model'!P445 -> 6908.994792 | Q104: ='Financial Model'!Q440+'Financial Model'!Q445 -> 7390.793592 | R104: ='Financial Model'!R440+'Financial Model'!R445 -> 7872.592392 | S104: ='Financial Model'!S440+'Financial Model'!S445 -> 8354.391192 | T104: ='Financial Model'!T440+'Financial Model'!T445 -> 8836.189992 | U104: ='Financial Model'!U440+'Financial Model'!U445 -> 9317.988792
D105: Less: Payables | E105: =-'Financial Model'!E450 -> -3402 | F105: =-'Financial Model'!F450 -> -3433 | G105: =-'Financial Model'!G450 -> -4079 | H105: =-'Financial Model'!H450 -> -3475 | I105: =-'Financial Model'!I450 -> -3952 | J105: =-'Financial Model'!J450 -> -3711 | K105: =-'Financial Model'!K450 -> -3717.318132 | L105: =-'Financial Model'!L450 -> -4126.488234 | M105: =-'Financial Model'!M450 -> -4470.95943 | N105: =-'Financial Model'!N450 -> -4937.594328 | O105: =-'Financial Model'!O450 -> -5337.723528 | P105: =-'Financial Model'!P450 -> -5737.852728 | Q105: =-'Financial Model'!Q450 -> -6137.981928 | R105: =-'Financial Model'!R450 -> -6538.111128 | S105: =-'Financial Model'!S450 -> -6938.240328 | T105: =-'Financial Model'!T450 -> -7338.369528 | U105: =-'Financial Model'!U450 -> -7738.498728
D106: Less: Provisions | E106: =IF('Financial Model'!E$4,'Financial Model'!E245,D106) -> -1067 | F106: =IF('Financial Model'!F$4,'Financial Model'!F245,E106) -> -1129 | G106: =IF('Financial Model'!G$4,'Financial Model'!G245,F106) -> -1141 | H106: =IF('Financial Model'!H$4,'Financial Model'!H245,G106) -> -1075 | I106: =IF('Financial Model'!I$4,'Financial Model'!I245,H106) -> -779 | J106: =IF('Financial Model'!J$4,'Financial Model'!J245,I106) -> -762 | K106: =IF('Financial Model'!K$4,'Financial Model'!K245,J106) -> -762 | L106: =IF('Financial Model'!L$4,'Financial Model'!L245,K106) -> -762 | M106: =IF('Financial Model'!M$4,'Financial Model'!M245,L106) -> -762 | N106: =IF('Financial Model'!N$4,'Financial Model'!N245,M106) -> -762 | O106: =IF('Financial Model'!O$4,'Financial Model'!O245,N106) -> -762 | P106: =IF('Financial Model'!P$4,'Financial Model'!P245,O106) -> -762 | Q106: =IF('Financial Model'!Q$4,'Financial Model'!Q245,P106) -> -762 | R106: =IF('Financial Model'!R$4,'Financial Model'!R245,Q106) -> -762 | S106: =IF('Financial Model'!S$4,'Financial Model'!S245,R106) -> -762 | T106: =IF('Financial Model'!T$4,'Financial Model'!T245,S106) -> -762 | U106: =IF('Financial Model'!U$4,'Financial Model'!U245,T106) -> -762
D107: Less: Net Deferred Taxes | E107: =IF('Financial Model'!E$4,'Financial Model'!E246,D107) -> -328 | F107: =IF('Financial Model'!F$4,'Financial Model'!F246,E107) -> -484 | G107: =IF('Financial Model'!G$4,'Financial Model'!G246,F107) -> -742 | H107: =IF('Financial Model'!H$4,'Financial Model'!H246,G107) -> -579 | I107: =IF('Financial Model'!I$4,'Financial Model'!I246,H107) -> -382 | J107: =IF('Financial Model'!J$4,'Financial Model'!J246,I107) -> -129 | K107: =IF('Financial Model'!K$4,'Financial Model'!K246,J107) -> -129 | L107: =IF('Financial Model'!L$4,'Financial Model'!L246,K107) -> -129 | M107: =IF('Financial Model'!M$4,'Financial Model'!M246,L107) -> -129 | N107: =IF('Financial Model'!N$4,'Financial Model'!N246,M107) -> -129 | O107: =IF('Financial Model'!O$4,'Financial Model'!O246,N107) -> -129 | P107: =IF('Financial Model'!P$4,'Financial Model'!P246,O107) -> -129 | Q107: =IF('Financial Model'!Q$4,'Financial Model'!Q246,P107) -> -129 | R107: =IF('Financial Model'!R$4,'Financial Model'!R246,Q107) -> -129 | S107: =IF('Financial Model'!S$4,'Financial Model'!S246,R107) -> -129 | T107: =IF('Financial Model'!T$4,'Financial Model'!T246,S107) -> -129 | U107: =IF('Financial Model'!U$4,'Financial Model'!U246,T107) -> -129
D108: Total | E108: =SUM(E100:E107) -> 19742 | F108: 20138 | G108: 30819 | H108: 29847 | I108: 32179 | J108: 28447 | K108: 29298.60962 | L108: 30223.37889 | M108: 31372.63523 | N108: 32704.73615 | O108: 34168.32276 | P108: 35819.82761 | Q108: 37660.72219 | R108: 39692.99633 | S108: 41919.14607 | T108: 44342.16319 | U108: 46965.52647
D110: Check | E110: =IF('Financial Model'!E4,E108='Financial Model'!E247,TRUE) -> TRUE | F110: =IF('Financial Model'!F4,F108='Financial Model'!F247,TRUE) -> TRUE | G110: =IF('Financial Model'!G4,G108='Financial Model'!G247,TRUE) -> TRUE | H110: =IF('Financial Model'!H4,H108='Financial Model'!H247,TRUE) -> TRUE | I110: =IF('Financial Model'!I4,I108='Financial Model'!I247,TRUE) -> TRUE | J110: =IF('Financial Model'!J4,J108='Financial Model'!J247,TRUE) -> TRUE | K110: =IF('Financial Model'!K4,K108='Financial Model'!K247,TRUE) -> TRUE | L110: =IF('Financial Model'!L4,L108='Financial Model'!L247,TRUE) -> TRUE | M110: =IF('Financial Model'!M4,M108='Financial Model'!M247,TRUE) -> TRUE | N110: =IF('Financial Model'!N4,N108='Financial Model'!N247,TRUE) -> TRUE | O110: =IF('Financial Model'!O4,O108='Financial Model'!O247,TRUE) -> TRUE | P110: =IF('Financial Model'!P4,P108='Financial Model'!P247,TRUE) -> TRUE | Q110: =IF('Financial Model'!Q4,Q108='Financial Model'!Q247,TRUE) -> TRUE | R110: =IF('Financial Model'!R4,R108='Financial Model'!R247,TRUE) -> TRUE | S110: =IF('Financial Model'!S4,S108='Financial Model'!S247,TRUE) -> TRUE | T110: =IF('Financial Model'!T4,T108='Financial Model'!T247,TRUE) -> TRUE | U110: =IF('Financial Model'!U4,U108='Financial Model'!U247,TRUE) -> TRUE
D111: Aggregate Check | E111: =AND(E110:U110) -> TRUE
D113: Marginal Income Tax | E113: ='Financial Model'!E359 -> 0.3 | F113: ='Financial Model'!F359 -> 0.3 | G113: ='Financial Model'!G359 -> 0.3 | H113: ='Financial Model'!H359 -> 0.3 | I113: ='Financial Model'!I359 -> 0.3 | J113: ='Financial Model'!J359 -> 0.3 | K113: ='Financial Model'!K359 -> 0.3 | L113: ='Financial Model'!L359 -> 0.3 | M113: ='Financial Model'!M359 -> 0.3 | N113: ='Financial Model'!N359 -> 0.3 | O113: ='Financial Model'!O359 -> 0.3 | P113: ='Financial Model'!P359 -> 0.3 | Q113: ='Financial Model'!Q359 -> 0.3 | R113: ='Financial Model'!R359 -> 0.3 | S113: ='Financial Model'!S359 -> 0.3 | T113: ='Financial Model'!T359 -> 0.3 | U113: ='Financial Model'!U359 -> 0.3
D114: EBIT | E114: ='Financial Model'!E466 -> 2772 | F114: ='Financial Model'!F466 -> 3242 | G114: ='Financial Model'!G466 -> 3542 | H114: ='Financial Model'!H466 -> 2477 | I114: ='Financial Model'!I466 -> 2393 | J114: ='Financial Model'!J466 -> 2179 | K114: ='Financial Model'!K466 -> 2554.60396 | L114: ='Financial Model'!L466 -> 3131.92282 | M114: ='Financial Model'!M466 -> 3946.447694 | N114: ='Financial Model'!N466 -> 4710.610162 | O114: ='Financial Model'!O466 -> 5110.84051 | P114: ='Financial Model'!P466 -> 5497.982319 | Q114: ='Financial Model'!Q466 -> 5871.969852 | R114: ='Financial Model'!R466 -> 6232.700103 | S114: ='Financial Model'!S466 -> 6580.033785 | T114: ='Financial Model'!T466 -> 6913.796176 | U114: ='Financial Model'!U466 -> 7233.777849
D115: NOPAT | E115: =E114*(1-E113) -> 1940.4 | F115: 2269.4 | G115: 2479.4 | H115: 1733.9 | I115: 1675.1 | J115: 1525.3 | K115: 1788.222772 | L115: 2192.345974 | M115: 2762.513386 | N115: 3297.427114 | O115: 3577.588357 | P115: 3848.587624 | Q115: 4110.378896 | R115: 4362.890072 | S115: 4606.02365 | T115: 4839.657323 | U115: 5063.644494

Sheet Audit
C4: Historic Balance Sheet | G4: ='Financial Model'!D98 -> TRUE | H4: =IF(G4,"",C4) -> 
C5: Invested Capital Reconciliation | G5: ='Valuation and Analysis'!E111 -> TRUE | H5: =IF(G5,"",C5) -> 
C6: Historic Income Statement | G6: ='Financial Model'!E561 -> TRUE | H6: =IF(G6,"",C6) -> 
C7: Historic Assets | G7: ='Financial Model'!E623 -> TRUE | H7: =IF(G7,"",C7) -> 
C8: Balance Sheet | G8: ='Financial Model'!E643 -> TRUE | H8: =IF(G8,"",C8) -> 
C10: Aggregate | G10: =AND(G4:G8) -> TRUE

Sheet Sheet2
E4: =sheet_name('Financial Model'!E642) -> 
E8: agg_dif | F8: ='Financial Model'!$E$517
E9: EV_EBITDA | F9: ='Valuation and Analysis'!$E$53
E10: exp_avg | F10: ='Financial Model'!$E$512:$U$512
E11: exp_dif | F11: ='Financial Model'!$E$514:$U$514
E12: exp_fixed | F12: ='Financial Model'!$E$513:$U$513
E13: graph_min | F13: ='Financial Model'!$E$753
E14: growth | F14: ='Valuation and Analysis'!$E$20
E15: inc_avg | F15: ='Financial Model'!$E$502:$U$502
E16: inc_dif | F16: ='Financial Model'!$E$504:$U$504
E17: inc_fixed | F17: ='Financial Model'!$E$503:$U$503
E18: long_term_roic | F18: ='Valuation and Analysis'!$E$22
E19: roic_spread | F19: ='Valuation and Analysis'!$E$21
E20: wacc | F20: ='Valuation and Analysis'!$E$19

Sheet 2015 EBITDA Forecast

Sheet Forecst of Sustaining Cap Exp

Sheet 2012 Volumes
O9: 141.1
O13: 15816
O14: 3450
O15: 2440

Sheet 2012 Summary Income
O37: 15816
O38: 11945
O39: 1413

Sheet 2013 Assumptions

Sheet Gross Plant
M47: Dep | N47: 1010 | P47: 25226
M48: Plant | N48: 25226 | P48: 10234
M49: Rate | N49: =N47/N48 -> 0.04003805597 | P49: =P48/P47 -> 0.4056925394
M51: Avg Life | N51: =1/N49 -> 24.97623762
